bitfinex/quotes_BTCUSD_20260308
["timestamp","ask_amount","ask_price","bid_price","bid_amount"]
[1772943065198,0.15949335,67021.0,67012.0,0.0002]
[1772943065383,0.12684426,67021.0,67012.0,0.0002]
[1772943065586,0.15949335,67021.0,67012.0,0.0002]
[1772943071374,0.03264909,67021.0,67012.0,0.0002]
[1772943071573,0.15949335,67021.0,67012.0,0.0002]
[1772943071993,0.0746027,67022.0,67012.0,0.0002]
[1772943072192,0.03464541,67021.0,67012.0,0.0002]
[1772943072393,0.12684426,67020.0,67012.0,0.0002]
[1772943074815,0.17924651,67041.0,67013.0,0.00834397]
[1772943075005,0.03464541,67040.0,67016.0,0.00834397]
[1772943075283,0.03464541,67040.0,67018.0,0.1058415]
[1772943075659,0.03464541,67040.0,67022.0,0.00355293]
[1772943075858,0.03464541,67040.0,67024.0,0.00355293]
[1772943077183,0.03469915,67040.0,67024.0,0.00355293]
[1772943078311,0.03469915,67040.0,67025.0,0.07459903]
[1772943078715,0.16154341,67040.0,67025.0,0.07459903]
[1772943080800,0.03469915,67040.0,67025.0,0.07459903]
[1772943081007,0.12684426,67039.0,67025.0,0.07459903]
[1772943082791,0.12684426,67037.0,67025.0,0.07459903]
[1772943083926,0.16294018,67036.0,67025.0,0.07459903]
[1772943085877,0.00027375,67040.0,67025.0,0.07459903]
[1772943086377,0.03609592,67038.0,67025.0,0.07459903]
[1772943086577,0.16294018,67036.0,67025.0,0.07459903]
[1772943086806,0.12684426,67036.0,67025.0,0.07459903]
[1772943086989,0.03464541,67034.0,67026.0,0.00148]
[1772943087198,0.12684426,67033.0,67026.0,0.00148]
[1772943088541,0.12684426,67033.0,67018.0,0.07460459]
[1772943088825,0.03464541,67028.0,67017.0,0.07480459]
[1772943089024,0.12684426,67025.0,67019.0,0.00148]
[1772943089175,0.16148967,67025.0,67019.0,0.00148]
[1772943089380,0.16148967,67025.0,67017.0,0.07480459]
[1772943089579,0.16148967,67025.0,67018.0,0.00148]
[1772943090025,0.16148967,67025.0,67017.0,0.07480459]
[1772943090200,0.16148967,67025.0,67019.0,0.00148]
[1772943090602,0.07459115,67033.0,67019.0,0.00148]
[1772943090603,0.07459203,67032.0,67021.0,0.07460348]
[1772943090813,0.12684426,67031.0,67021.0,0.07460348]
[1772943091012,0.03464541,67028.0,67022.0,0.00148]
[1772943091213,0.03464541,67026.0,67022.0,0.00148]
[1772943091425,0.12684426,67023.0,67021.0,0.07460348]
[1772943091622,0.03464541,67031.0,67022.0,0.00148]
[1772943091929,0.16148967,67027.0,67021.0,0.07460348]
[1772943092140,0.07459115,67033.0,67022.0,0.00148]
[1772943092339,0.03464541,67032.0,67022.0,0.00148]
[1772943092538,0.07459115,67033.0,67023.0,0.00148]
[1772943092852,0.07458345,67039.0,67024.0,0.07460014]
[1772943093118,0.136349,67038.0,67025.0,0.00148]
[1772943093326,0.03464541,67035.0,67025.0,0.00148]
[1772943093473,0.136349,67032.0,67024.0,0.07460014]
[1772943093675,0.136349,67030.0,67025.0,0.00148]
[1772943093991,0.03464541,67027.0,67024.0,0.04604411]
[1772943094167,0.17099441,67026.0,67025.0,0.00148]
[1772943094568,0.136349,67025.0,67024.0,0.04604411]
[1772943094777,0.136349,67025.0,67024.0,0.00148]
[1772943095476,0.136349,67025.0,67013.0,0.07461238]
[1772943095684,0.136349,67025.0,67022.0,0.00015]
[1772943096058,0.136349,67025.0,67023.0,0.00148]
[1772943096462,0.136349,67025.0,67022.0,0.00015]
[1772943096661,0.136349,67025.0,67023.0,0.00148]
[1772943097075,0.17099441,67025.0,67024.0,0.00148]
[1772943097279,0.03464541,67024.0,67013.0,0.07461238]
[1772943097486,0.136349,67021.0,67018.0,0.00148]
[1772943097683,0.17099441,67020.0,67018.0,0.00148]
[1772943097911,0.136349,67020.0,67019.0,0.00148]
[1772943098129,0.03464541,67024.0,67019.0,0.00148]
[1772943098331,0.17099441,67023.0,67013.0,0.07461238]
[1772943098682,0.17099441,67023.0,67015.0,0.00148]
[1772943098790,0.07459581,67028.0,67013.0,0.07461238]
[1772943098989,0.136349,67025.0,67016.0,0.07460904]
[1772943099204,0.07459704,67027.0,67016.0,0.07460904]
[1772943099205,0.17059415,67023.0,67016.0,0.07460904]
[1772943099524,0.07460014,67024.0,67012.0,0.07481238]
[1772943099741,0.136349,67021.0,67013.0,0.00148]
[1772943099946,0.03424515,67019.0,67014.0,0.00148]
[1772943100143,0.03424515,67018.0,67014.0,0.00148]
[1772943100456,0.03424515,67018.0,67013.0,0.07461238]
[1772943100457,0.03424515,67018.0,67015.0,0.00148]
[1772943100633,0.03424515,67016.0,67015.0,0.00148]
[1772943101358,0.0343287,67016.0,67015.0,0.00148]
[1772943101517,0.0343287,67016.0,67015.0,0.0016147]
[1772943102416,0.0343287,67016.0,67015.0,0.0001347]
[1772943102611,0.0343287,67016.0,67015.0,0.0016147]
[1772943103395,0.0343287,67016.0,67015.0,0.0001347]
[1772943103591,0.07459879,67026.0,67015.0,0.00148]
[1772943103592,0.10884335,67026.0,67015.0,0.00148]
[1772943103805,0.10890904,67026.0,67015.0,0.00148]
[1772943104622,0.07466389,67026.0,67015.0,0.00148]
[1772943104824,0.03424515,67025.0,67015.0,0.00148]
[1772943105435,0.07460014,67024.0,67016.0,0.07460904]
[1772943105893,0.03424515,67025.0,67016.0,0.07460904]
[1772943106066,6.569e-05,67026.0,67016.0,0.07460904]
[1772943106385,6.569e-05,67026.0,67016.0,0.10044711]
[1772943106936,6.569e-05,67026.0,67016.0,0.07460904]
[1772943108034,6.569e-05,67026.0,67016.0,0.07480904]
[1772943114839,0.03424515,67025.0,67016.0,0.07480904]
[1772943127074,0.0002857,67026.0,67016.0,0.07480904]
[1772943128050,0.00022001,67025.0,67016.0,0.07480904]
[1772943132915,0.03632953,67024.0,67016.0,0.07480904]
[1772943133115,0.03632953,67022.0,67017.0,0.00148]
[1772943133462,0.03632953,67021.0,67018.0,0.00148]
[1772943134451,0.03632953,67021.0,67019.0,0.0746057]
[1772943135075,0.07481915,67025.0,67019.0,0.0746057]
[1772943135231,0.03632953,67024.0,67019.0,0.0746057]
[1772943138306,0.07460037,67024.0,67019.0,0.0746057]
[1772943138453,0.03632953,67023.0,67019.0,0.0746057]
[1772943138665,0.03632953,67023.0,67018.0,0.00148]
[1772943139266,0.03632953,67023.0,67018.0,0.07608676]
[1772943139568,0.03632953,67023.0,67018.0,0.00148]
[1772943141383,0.03632953,67022.0,67018.0,0.00148]
[1772943142237,0.03632953,67022.0,67018.0,0.07608651]
[1772943142792,0.03632953,67022.0,67018.0,0.00148]
[1772943144934,0.03632953,67022.0,67018.0,0.07608662]
[1772943145364,0.00022001,67025.0,67018.0,0.07608662]
[1772943149068,0.22374045,67031.0,67018.0,0.07608662]
[1772943149270,0.07463301,67031.0,67018.0,0.11388193]
[1772943149855,0.07463301,67031.0,67018.0,0.11408193]
[1772943150255,0.11096254,67031.0,67018.0,0.11408193]
[1772943150443,0.03632953,67030.0,67018.0,0.07628662]
[1772943150644,0.00022001,67025.0,67018.0,0.07628662]
[1772943151062,0.03632953,67030.0,67018.0,0.07628662]
[1772943151688,0.07459457,67029.0,67018.0,0.07628662]
[1772943152366,0.03632953,67028.0,67018.0,0.07628662]
[1772943153446,0.03632953,67028.0,67018.0,0.07480662]
[1772943153624,0.03632953,67028.0,67019.0,0.00148]
[1772943154012,0.11092633,67027.0,67020.0,0.00148]
[1772943154207,0.0745968,67027.0,67020.0,0.00148]
[1772943154378,0.13195122,67024.0,67021.0,0.00148]
[1772943154582,0.13195122,67023.0,67012.0,0.0746135]
[1772943154779,0.13195122,67022.0,67013.0,0.00148]
[1772943155025,0.03632953,67021.0,67013.0,0.00148]
[1772943156894,0.0746041,67021.0,67014.0,0.00148]
[1772943157032,0.03632953,67020.0,67014.0,0.00148]
[1772943159878,0.0746057,67019.0,67014.0,0.00148]
[1772943160078,0.0746057,67019.0,67013.0,0.0002]
[1772943160289,0.03543409,67018.0,67013.0,0.07481217]
[1772943160473,0.03543409,67018.0,67014.0,0.00148]
[1772943160678,0.03543409,67018.0,67015.0,0.00148]
[1772943161084,0.03543409,67018.0,67013.0,0.07481217]
[1772943161302,0.03543409,67018.0,67016.0,0.00148]
[1772943161465,0.03543409,67018.0,67017.0,0.00148]
[1772943161874,0.03543409,67018.0,67013.0,0.0002]
[1772943162139,0.03543409,67018.0,67014.0,0.00148]
[1772943162271,0.03543409,67018.0,67011.0,0.0002]
[1772943162471,0.03543409,67018.0,67012.0,0.00148]
[1772943162875,0.03543409,67018.0,67013.0,0.00148]
[1772943163071,0.03543409,67015.0,67005.0,0.07497059]
[1772943163296,0.03543409,67013.0,67006.0,0.00148]
[1772943163470,0.03543409,67013.0,67005.0,0.07497059]
[1772943163677,0.03543409,67013.0,67006.0,0.00148]
[1772943163881,0.0746135,67012.0,67006.0,0.00148]
[1772943164107,0.0746135,67012.0,67005.0,0.07497059]
[1772943164451,0.03543409,67011.0,67007.0,0.00148]
[1772943164577,0.03543409,67011.0,67005.0,0.07497059]
[1772943165021,0.03543409,67011.0,67006.0,0.00148]
[1772943165239,0.03543409,67011.0,66998.0,0.00574166]
[1772943165240,0.03543409,67008.0,66998.0,0.00574166]
[1772943165574,0.03543409,67006.0,66999.0,0.00148]
[1772943165723,0.03543409,67005.0,67000.0,0.00148]
[1772943165929,0.03543409,67005.0,66998.0,0.08036969]
[1772943165930,0.03543409,67005.0,66998.0,0.00574166]
[1772943166129,0.03543409,67005.0,66999.0,0.00148]
[1772943166323,0.03543409,67005.0,66998.0,0.00574166]
[1772943166532,0.03543409,67005.0,66992.0,0.07463554]
[1772943166731,0.00147999,67007.0,66992.0,8.355e-05]
[1772943166732,0.13195122,67002.0,66992.0,8.355e-05]
[1772943166942,0.03543409,66999.0,66993.0,0.00139645]
[1772943167135,0.03543409,66996.0,66994.0,0.00148]
[1772943167354,0.16738531,66996.0,66995.0,0.00148]
[1772943168012,0.03543409,66996.0,66984.0,0.07464469]
[1772943168149,0.03543409,66996.0,66991.0,0.0002]
[1772943168361,0.03543409,66996.0,66992.0,0.00148]
[1772943168564,0.03543409,66994.0,66992.0,0.00148]
[1772943168758,0.03543409,66994.0,66984.0,0.07464469]
[1772943168985,0.03543409,66994.0,66985.0,0.00148]
[1772943169153,0.07463577,66992.0,66985.0,0.00148]
[1772943169575,0.07463577,66992.0,66984.0,0.07464453]
[1772943169805,0.07463577,66992.0,66986.0,0.00148]
[1772943170158,0.13195122,66991.0,66987.0,0.00148]
[1772943170352,0.03543409,66990.0,66981.0,0.07464737]
[1772943170565,0.03543409,66990.0,66982.0,0.00148]
[1772943170769,0.07463422,66994.0,66983.0,0.03555558]
[1772943171176,0.0014801,66993.0,66984.0,0.07612469]
[1772943173737,0.07463146,66996.0,66984.0,0.07612469]
[1772943173738,0.11006555,66996.0,66984.0,0.07612469]
[1772943174605,0.07463146,66996.0,66984.0,0.07612469]
[1772943174848,0.07485147,66996.0,66984.0,0.07612469]
[1772943175473,0.07485147,66996.0,66985.0,0.00148]
[1772943175643,0.20680269,66996.0,66986.0,0.07464246]
[1772943176046,0.20680269,66996.0,66984.0,0.07464469]
[1772943176047,0.13195122,66993.0,66987.0,0.00148]
[1772943176240,0.01735966,66990.0,66976.0,0.07485276]
[1772943176444,0.13195122,66987.0,66977.0,0.00148]
[1772943176664,0.14931088,66987.0,66977.0,0.00148]
[1772943177723,0.13195122,66985.0,66973.0,0.07465634]
[1772943177990,0.01734257,66980.0,66974.0,0.00148]
[1772943178169,0.01734257,66980.0,66975.0,0.00148]
[1772943178353,0.01734257,66979.0,66975.0,0.00148]
[1772943178542,0.01734257,66977.0,66976.0,0.00148]
[1772943179198,0.01855771,66981.0,66965.0,0.11030626]
[1772943179406,0.07464246,66986.0,66965.0,8.56e-05]
[1772943179407,0.13195122,66978.0,66965.0,8.56e-05]
[1772943179604,0.13195122,66978.0,66960.0,0.07467091]
[1772943179605,0.07465695,66973.0,66966.0,0.00148]
[1772943179810,0.07465695,66973.0,66967.0,0.00148]
[1772943179811,0.01853843,66972.0,66967.0,0.00148]
[1772943180011,0.01853843,66971.0,66967.0,0.00012004]
[1772943180171,0.07465695,66973.0,66961.0,0.07466952]
[1772943180172,0.13195122,66970.0,66961.0,0.07466952]
[1772943180366,0.01853843,66969.0,66961.0,0.07476527]
[1772943180629,0.07465695,66973.0,66962.0,0.00148]
[1772943180974,0.07465695,66973.0,66964.0,0.03555558]
[1772943182295,0.13770832,66980.0,66966.0,0.03467158]
[1772943182296,0.07465026,66979.0,66966.0,0.03467158]
[1772943182542,0.07465026,66979.0,66969.0,0.0002]
[1772943182733,0.07465026,66979.0,66970.0,0.00148]
[1772943185938,0.07465026,66979.0,66970.0,0.07613997]
[1772943186137,0.07465026,66979.0,66970.0,0.00148]
[1772943188946,0.07465026,66979.0,66970.0,0.00168]
[1772943197106,0.07487027,66979.0,66970.0,0.00168]
[1772943199695,0.07487027,66979.0,66971.0,0.00148]
[1772943199895,0.01607084,66976.0,66961.0,9.575e-05]
[1772943200139,0.07487027,66979.0,66956.0,0.03742682]
[1772943200140,0.01607084,66969.0,66956.0,0.11210256]
[1772943200342,0.01607084,66969.0,66957.0,0.00148]
[1772943200521,0.01607084,66969.0,66955.0,0.0002]
[1772943200720,0.13108538,66967.0,66956.0,0.00148]
[1772943200953,0.13108538,66963.0,66943.0,0.07468985]
[1772943201267,0.13108538,66955.0,66944.0,1e-08]
[1772943201457,0.01602643,66952.0,66944.0,1e-08]
[1772943201656,0.01602643,66951.0,66938.0,0.03742682]
[1772943201872,0.07467479,66957.0,66940.0,0.00148]
[1772943202074,0.07479477,66957.0,66942.0,0.03742682]
[1772943202278,0.07479477,66957.0,66944.0,0.03742682]
[1772943202480,0.07479477,66957.0,66945.0,0.03742682]
[1772943202659,0.07479477,66957.0,66947.0,0.03742682]
[1772943203381,0.00011998,66957.0,66947.0,0.03742682]
[1772943204800,0.00011998,66957.0,66946.0,0.00148]
[1772943205008,0.00011998,66957.0,66947.0,0.03742682]
[1772943205208,0.00011998,66957.0,66946.0,0.00148]
[1772943205414,0.00011998,66957.0,66912.0,0.0002365]
[1772943205631,0.01570139,66948.0,66930.0,0.0002]
[1772943205780,0.01570139,66948.0,66930.0,0.03762682]
[1772943206104,0.01570139,66948.0,66931.0,0.12706576]
[1772943206341,0.01783413,66955.0,66934.0,0.03742682]
[1772943206479,0.01783413,66955.0,66937.0,0.12706576]
[1772943206678,0.01783413,66955.0,66940.0,0.03742682]
[1772943206878,0.00011998,66957.0,66943.0,0.12706576]
[1772943207083,0.00011998,66957.0,66930.0,0.0002]
[1772943207084,0.00011998,66957.0,66945.0,0.12706576]
[1772943207355,0.00011998,66957.0,66946.0,0.00148]
[1772943208038,0.00011998,66957.0,66947.0,0.00148]
[1772943208420,0.00011998,66957.0,66947.0,0.0009882]
[1772943209236,0.01359748,66956.0,66947.0,0.0009882]
[1772943209440,0.07467702,66955.0,66947.0,0.0009882]
[1772943211475,0.07467702,66956.0,66947.0,0.0009882]
[1772943211836,0.001,66955.0,66947.0,0.0009882]
[1772943212255,0.001,66955.0,66947.0,0.0011882]
[1772943212548,0.01430966,66955.0,66948.0,0.00148]
[1772943212700,0.01330966,66955.0,66949.0,0.00148]
[1772943212902,0.07567702,66956.0,66949.0,0.00148]
[1772943213308,0.07567702,66956.0,66933.0,0.0002]
[1772943213519,0.04463418,66950.0,66935.0,0.12641719]
[1772943213808,0.04463418,66950.0,66936.0,0.03742682]
[1772943214009,0.04463418,66950.0,66937.0,0.03742682]
[1772943214409,0.07467925,66953.0,66934.0,0.00148]
[1772943215244,0.07467925,66953.0,66935.0,0.16384401]
[1772943215449,0.07467925,66954.0,66937.0,0.0746971]
[1772943215698,0.07467925,66954.0,66942.0,0.12641719]
[1772943215861,0.07467925,66954.0,66944.0,0.03742682]
[1772943217657,0.074797,66957.0,66944.0,0.03742682]
[1772943218093,0.00011998,66957.0,66945.0,0.12641719]
[1772943218250,0.00011998,66957.0,66946.0,0.16384401]
[1772943218656,0.07467256,66962.0,66943.0,0.00148]
[1772943218657,0.0746675,66964.0,66944.0,0.07468853]
[1772943218873,0.0746675,66964.0,66944.0,0.07480851]
[1772943219050,0.0746675,66964.0,66944.0,0.07464029]
[1772943219277,0.0746675,66964.0,66948.0,0.12641719]
[1772943219597,0.0746675,66964.0,66951.0,0.03493255]
[1772943219751,0.07466698,66966.0,66953.0,0.12641719]
[1772943219955,0.07466698,66966.0,66954.0,0.03493255]
[1772943220174,0.01286755,66963.0,66944.0,0.00031998]
[1772943220481,0.01286755,66957.0,66944.0,0.00031998]
[1772943220842,0.01286755,66957.0,66945.0,0.00148]
[1772943220965,0.01286755,66957.0,66944.0,0.00031998]
[1772943221172,0.01286755,66957.0,66945.0,0.00148]
[1772943221973,0.0746759,66956.0,66945.0,0.00148]
[1772943224747,0.0746759,66956.0,66945.0,0.07616726]
[1772943224953,0.0746759,66956.0,66947.0,0.16134974]
[1772943225462,0.0746759,66956.0,66948.0,0.00148]
[1772943226023,0.0746759,66956.0,66948.0,0.00131182]
[1772943226223,0.0746759,66957.0,66948.0,0.00131182]
[1772943226426,0.08700647,66957.0,66949.0,0.00148]
[1772943226611,0.08700647,66957.0,66949.0,0.00131183]
[1772943227923,0.0746759,66957.0,66949.0,0.00131183]
[1772943228129,0.00022001,66956.0,66949.0,0.00131183]
[1772943228411,0.07467702,66955.0,66949.0,0.00131183]
[1772943230305,0.07467702,66955.0,66945.0,0.07468816]
[1772943230505,0.07467702,66955.0,66946.0,0.00148]
[1772943231089,0.07467702,66955.0,66944.0,0.00031998]
[1772943231394,0.22359263,66955.0,66945.0,0.00148]
[1772943231599,0.07467702,66955.0,66944.0,0.00031998]
[1772943231816,0.23540477,66955.0,66945.0,0.00148]
[1772943232004,0.08648916,66955.0,66945.0,0.00148]
[1772943232580,0.07467702,66955.0,66945.0,0.00148]
[1772943232791,0.07467702,66955.0,66945.0,0.12789719]
[1772943232991,0.07467702,66955.0,66946.0,0.16134974]
[1772943234540,0.07567702,66955.0,66946.0,0.16134974]
[1772943234748,0.07467702,66955.0,66946.0,0.16134974]
[1772943235098,0.07567702,66955.0,66946.0,0.16134974]
[1772943236338,0.22459263,66955.0,66946.0,0.16134974]
[1772943236980,0.22459263,66955.0,66946.0,0.16154974]
[1772943237982,0.22444263,66955.0,66946.0,0.16154974]
[1772943240435,0.07467702,66955.0,66949.0,0.03493255]
[1772943240713,0.22459263,66955.0,66949.0,0.16134974]
[1772943240939,0.07467702,66955.0,66949.0,0.16134974]
[1772943241229,0.07567702,66955.0,66949.0,0.16134974]
[1772943241365,0.07467702,66955.0,66949.0,0.16134974]
[1772943241975,0.07467702,66958.0,66949.0,0.16134974]
[1772943241976,0.02315532,66958.0,66949.0,0.07468263]
[1772943242594,0.02315532,66958.0,66951.0,0.16131337]
[1772943242883,0.02315532,66958.0,66952.0,0.00148]
[1772943243089,0.02642389,66957.0,66944.0,0.00031998]
[1772943243291,0.00116008,66944.0,66941.0,0.07469221]
[1772943243503,0.00116008,66944.0,66940.0,0.0002]
[1772943243504,0.00116008,66944.0,66940.0,0.12766957]
[1772943243668,0.00116008,66944.0,66942.0,0.00148]
[1772943244029,0.00116008,66944.0,66943.0,0.00148]
[1772943244443,0.00116008,66944.0,66940.0,0.0002]
[1772943244669,0.00116008,66944.0,66942.0,0.16131337]
[1772943245045,0.07467709,66955.0,66945.0,0.12746957]
[1772943245250,0.0001202,66955.0,66947.0,0.12746957]
[1772943245579,0.0001202,66955.0,66949.0,0.16131337]
[1772943245774,0.0001202,66955.0,66950.0,0.16279337]
[1772943245984,0.0001202,66955.0,66950.0,0.00148]
[1772943246181,0.07466921,66962.0,66951.0,0.16131337]
[1772943246982,0.07466921,66962.0,66950.0,0.00148]
[1772943247183,0.00022001,66958.0,66950.0,0.00148]
[1772943247357,0.00022001,66958.0,66951.0,0.16131337]
[1772943247557,0.07467479,66957.0,66951.0,0.16131337]
[1772943248692,0.07467479,66957.0,66951.0,0.12746957]
[1772943249016,0.07467479,66957.0,66950.0,0.00148]
[1772943253832,0.07467479,66957.0,66950.0,0.07616242]
[1772943254048,0.07467479,66957.0,66950.0,0.20363199]
[1772943254495,0.07467479,66957.0,66950.0,0.12894957]
[1772943255369,0.07467479,66957.0,66955.0,0.00015]
[1772943255568,0.07467479,66957.0,66956.0,0.00148]
[1772943255771,0.07467479,66957.0,66956.0,0.00040204]
[1772943255938,0.07467479,66957.0,66956.0,0.00148]
[1772943259262,0.22372163,66957.0,66956.0,0.00148]
[1772943259464,0.07467479,66957.0,66956.0,0.00148]
[1772943259667,0.07467479,66957.0,66956.0,0.0013118]
[1772943260958,0.07467479,66957.0,66956.0,0.00148]
[1772943261508,0.07467479,66957.0,66947.0,0.12746957]
[1772943261662,0.07478251,66957.0,66948.0,0.00148]
[1772943263024,0.07478251,66957.0,66949.0,0.07468371]
[1772943263232,0.14915456,66957.0,66949.0,0.20215328]
[1772943263395,0.00010772,66957.0,66949.0,0.20215328]
[1772943263593,0.07478251,66957.0,66949.0,0.20215328]
[1772943263981,0.07478251,66957.0,66949.0,0.07468371]
[1772943264382,0.07500252,66957.0,66949.0,0.07468371]
[1772943267036,0.22404936,66957.0,66949.0,0.07468371]
[1772943267240,0.07500252,66957.0,66949.0,0.07468371]
[1772943268958,0.22404936,66957.0,66949.0,0.07468371]
[1772943269380,0.07500252,66957.0,66949.0,0.07468371]
[1772943271127,0.22404936,66957.0,66949.0,0.07468371]
[1772943271326,0.07500252,66957.0,66949.0,0.07468371]
[1772943272122,0.07500252,66957.0,66950.0,0.00148]
[1772943273151,0.07500252,66957.0,66951.0,0.00148]
[1772943273930,0.07500252,66957.0,66949.0,0.07488371]
[1772943274135,0.14904684,66956.0,66950.0,0.00148]
[1772943274399,0.07467479,66960.0,66944.0,0.0002]
[1772943274400,0.37264392,66980.0,66945.0,0.15799841]
[1772943274600,0.00022001,66996.0,66962.0,0.16335398]
[1772943274789,0.00022001,66996.0,66963.0,0.1184492]
[1772943274993,0.00765408,66990.0,66963.0,0.1184492]
[1772943275202,0.00268,67000.0,66982.0,0.1221512]
[1772943275415,0.00268,67000.0,66986.0,0.1221512]
[1772943275416,0.0012,67000.0,66986.0,0.1221512]
[1772943275627,0.0012,67000.0,66989.0,0.03584721]
[1772943275790,0.0012,67000.0,66991.0,0.1221512]
[1772943275992,0.0012,67000.0,66992.0,0.14894796]
[1772943276199,0.0012,67000.0,66991.0,0.1221512]
[1772943276532,0.00581583,66998.0,66991.0,0.1221512]
[1772943277343,0.00581583,66998.0,66992.0,0.19351066]
[1772943277547,0.03510492,66997.0,66992.0,0.11887546]
[1772943277760,0.03510492,66997.0,66986.0,0.17914113]
[1772943277948,0.03510492,66997.0,66985.0,0.00148]
[1772943280708,0.00022001,67010.0,66985.0,0.07464273]
[1772943280908,0.0006206,67010.0,66999.0,0.03909851]
[1772943281117,0.0006206,67010.0,67002.0,0.1221512]
[1772943281317,0.00022001,67005.0,67001.0,0.00148]
[1772943281621,0.00022001,67005.0,67002.0,0.1221512]
[1772943281855,0.0006206,67010.0,67004.0,0.07462241]
[1772943282054,0.0006206,67010.0,67004.0,0.23587212]
[1772943282176,0.0006206,67010.0,67004.0,0.16124971]
[1772943284689,0.00022001,67012.0,67004.0,0.16124971]
[1772943284885,0.00022001,67012.0,67004.0,0.16109971]
[1772943285351,0.07457637,67046.0,67004.0,0.0002422]
[1772943285522,0.12985036,67040.0,67008.0,0.17914113]
[1772943285714,0.03619494,67037.0,67006.0,0.1221512]
[1772943285918,0.00134238,67042.0,67009.0,0.03909851]
[1772943285919,0.12985036,67034.0,67009.0,0.03909851]
[1772943286124,0.03619494,67029.0,67010.0,0.07461572]
[1772943286322,0.03619494,67029.0,67009.0,0.11371423]
[1772943286323,0.12985036,67026.0,67011.0,0.00148]
[1772943286486,0.03619494,67025.0,67010.0,0.00148]
[1772943287351,0.07458975,67034.0,67011.0,0.1221512]
[1772943287550,0.00012013,67025.0,67014.0,0.03909851]
[1772943287763,0.00012013,67025.0,67015.0,0.03909851]
[1772943287966,0.00134238,67024.0,67015.0,0.03909851]
[1772943288756,0.00134238,67024.0,67015.0,0.11370813]
[1772943289067,0.00022001,67017.0,67015.0,0.11370813]
[1772943289274,0.00156239,67024.0,67015.0,0.11370813]
[1772943290103,0.07577158,67050.0,67015.0,0.11370813]
[1772943290104,0.03619494,67042.0,67017.0,0.07460793]
[1772943290283,0.00148,67043.0,67017.0,0.07472806]
[1772943290511,0.00148,67043.0,67018.0,0.00148]
[1772943290835,0.03619494,67041.0,67018.0,0.00148]
[1772943291062,0.12985036,67038.0,67018.0,0.00148]
[1772943291224,0.12985036,67036.0,67018.0,0.00148]
[1772943291427,0.03619494,67034.0,67018.0,0.00148]
[1772943291646,0.03619494,67032.0,67018.0,0.00148]
[1772943292061,0.03619494,67032.0,67014.0,0.1221512]
[1772943292062,0.12985036,67030.0,67007.0,0.07461906]
[1772943292266,0.12985036,67026.0,67008.0,0.00152]
[1772943292464,0.03619494,67023.0,67008.0,0.00152]
[1772943292803,0.03619494,67022.0,67008.0,0.00152]
[1772943293213,0.00012006,67030.0,67010.0,0.03909851]
[1772943293418,0.00012006,67030.0,67009.0,0.14700032]
[1772943293419,0.03619494,67029.0,67011.0,0.14700032]
[1772943293617,0.03619494,67029.0,67009.0,0.1221512]
[1772943293775,0.03619494,67029.0,67012.0,0.04061851]
[1772943293969,0.03619494,67029.0,67013.0,0.03909851]
[1772943294196,0.03619494,67029.0,67014.0,0.11370978]
[1772943294593,0.03619494,67029.0,67015.0,0.1221512]
[1772943294793,0.03619494,67029.0,67016.0,0.03909851]
[1772943295363,0.00012006,67030.0,67016.0,0.03909851]
[1772943295577,0.00012006,67030.0,67017.0,0.03909851]
[1772943295773,0.00012006,67030.0,67018.0,0.00152]
[1772943295983,0.00012006,67030.0,67018.0,0.04061851]
[1772943296192,0.00012006,67030.0,67020.0,0.07460459]
[1772943296639,0.00012006,67030.0,67020.0,0.1137031]
[1772943299339,0.00012006,67030.0,67021.0,0.03909851]
[1772943300767,0.00012006,67030.0,67022.0,0.07460236]
[1772943301886,0.00012006,67030.0,67022.0,0.07560236]
[1772943302381,0.00012006,67030.0,67023.0,0.14762293]
[1772943302587,0.00012006,67030.0,67022.0,0.07560236]
[1772943302885,0.00012006,67030.0,67024.0,0.07460014]
[1772943303308,0.00012006,67030.0,67025.0,0.14782677]
[1772943303528,0.00012006,67030.0,67026.0,0.14767677]
[1772943303717,0.00012006,67030.0,67024.0,0.07460014]
[1772943304505,0.00012006,67030.0,67022.0,0.07460236]
[1772943304852,0.03868282,67028.0,67003.0,0.22214821]
[1772943305128,0.13483831,67023.0,67006.0,0.07486154]
[1772943305424,0.03868282,67018.0,67006.0,0.07486154]
[1772943305581,0.04020282,67018.0,67006.0,0.07486154]
[1772943306021,0.04020282,67018.0,67006.0,0.07586154]
[1772943306513,0.04020282,67018.0,67006.0,0.1151356]
[1772943307146,0.04020282,67018.0,67006.0,0.1141356]
[1772943310600,0.04020282,67018.0,67006.0,0.1143356]
[1772943311351,0.03868282,67018.0,67006.0,0.1143356]
[1772943311550,0.00152,67017.0,67006.0,0.1143356]
[1772943312909,0.07460904,67016.0,67006.0,0.0004422]
[1772943313118,0.07460904,67016.0,67001.0,0.0748256]
[1772943313119,0.13483831,67013.0,67001.0,0.0748256]
[1772943313324,0.03752029,67012.0,67001.0,0.0748256]
[1772943313943,0.03904029,67011.0,67001.0,0.0748256]
[1772943320362,0.03752029,67010.0,67001.0,0.0748256]
[1772943320559,0.13483831,67010.0,66998.0,0.0803783]
[1772943320786,0.03752029,67009.0,66998.0,0.0803783]
[1772943322006,0.11213729,67009.0,66998.0,0.08077889]
[1772943323592,0.074617,67009.0,66998.0,0.08077889]
[1772943323783,0.11213729,67009.0,66998.0,0.08077889]
[1772943325503,0.03752029,67008.0,66998.0,0.08097889]
[1772943327445,0.03752029,67008.0,66990.0,0.07463764]
[1772943327446,0.13483831,67006.0,66990.0,0.07463764]
[1772943327649,0.00152,67005.0,66991.0,0.07483637]
[1772943327854,0.00152,67011.0,66994.0,0.03993291]
[1772943328088,0.00152,67011.0,66996.0,0.03993291]
[1772943328394,0.03752029,67016.0,66998.0,0.03993291]
[1772943328571,0.00152,67014.0,66998.0,0.04145291]
[1772943328744,0.03904029,67014.0,66998.0,0.04145291]
[1772943329756,0.07461238,67013.0,66999.0,0.07462797]
[1772943329972,0.11213267,67013.0,66999.0,0.07462797]
[1772943330374,0.11213267,67013.0,66999.0,0.11456088]
[1772943332325,0.11213267,67013.0,66999.0,0.07462797]
[1772943332525,0.11213267,67013.0,67000.0,0.03993291]
[1772943334181,0.11213267,67013.0,67001.0,0.07462575]
[1772943334809,0.03752029,67011.0,66997.0,0.02403442]
[1772943335014,0.03752029,67010.0,66997.0,0.02403442]
[1772943336400,0.07461684,67009.0,66997.0,0.04145291]
[1772943336594,0.00152,67008.0,66997.0,0.04145291]
[1772943337934,0.00152,67008.0,66998.0,0.03993291]
[1772943338454,0.07613486,67011.0,66999.0,0.07462797]
[1772943339025,0.07613486,67011.0,66999.0,0.11112321]
[1772943340180,0.07613468,67011.0,67000.0,0.03649524]
[1772943340302,0.00152,67011.0,67001.0,0.07462575]
[1772943340506,0.00152,67011.0,67001.0,0.11112099]
[1772943341336,0.00575,66998.0,66967.0,0.07466252]
[1772943341511,0.00152,66997.0,66967.0,0.21147545]